lending/lending_fUSD_20251121
["ID","MTS","AMOUNT","RATE_DAILY","PERIOD"]
[394555521,1763701846192,-536.31003349,0.00017904,2]
[394555523,1763701846201,-513.12886823,0.00017904,4]
[394555525,1763701846211,-2000.0,0.00017916,2]
[394555527,1763701846220,-3613.1388925,0.0001792,2]
[394555529,1763701846229,-1070.93,0.00017929,2]
[394555531,1763701846238,-1600.0,0.00017934,2]
[394555533,1763701846247,-20218.4311471,0.0001797,2]
[394555535,1763701846257,-500.0,0.00017973,2]
[394555537,1763701846266,-150.0,0.00017973,2]
[394555539,1763701846276,-168.0,0.00017977,2]
[394555541,1763701846285,-172.0,0.00017978,2]
[394555543,1763701846296,-1025.14097932,0.00017999,5]
[394555546,1763701846306,-1025.14097932,0.00017999,5]
[394555548,1763701846320,-1025.14097935,0.00017999,5]
[394555550,1763701846329,-1025.14097932,0.00017999,5]
[394555552,1763701846339,-1057.70014654,0.00017999,5]
[394555554,1763701846349,-1057.70014654,0.00017999,5]
[394555556,1763701846358,-1057.70014654,0.00017999,5]
[394555558,1763701846368,-1057.70014654,0.00017999,5]
[394555560,1763701846377,-1057.70014657,0.00017999,5]
[394555562,1763701846386,-222.87710517,0.00017999,2]
[394555564,1763701846395,-500.0,0.00017999,2]
[394555566,1763701846405,-500.0,0.00017999,2]
[394555568,1763701846415,-500.0,0.00017999,2]
[394555570,1763701846424,-500.0,0.00017999,2]
[394555572,1763701846433,-500.0,0.00017999,2]
[394555574,1763701846443,-500.0,0.00017999,2]
[394555576,1763701846452,-500.0,0.00017999,2]
[394555578,1763701846462,-500.0,0.00017999,2]
[394555580,1763701846471,-500.0,0.00017999,2]
[394555582,1763701846480,-500.0,0.00017999,2]
[394555584,1763701846490,-532.26769453,0.00017999,2]
[394555585,1763701846499,-300.0,0.00017999,2]
[394555586,1763701846508,-247.8255487,0.00018,2]
[394555587,1763701846517,-282.63386955,0.00018,2]
[394555588,1763701846526,-291.50683581,0.00018,2]
[394555589,1763701846535,-20711.87777867,0.00018,2]
[394555590,1763701847004,-9000.0,0.00018,2]
[394555591,1763701847154,-901.0274664,0.00018,2]
[394555592,1763701847165,-313.4775125,0.00018,2]
[394555593,1763701847178,-991.74799206,0.00018,2]
[394555594,1763701847201,-11145.39911,0.00018,2]
[394555595,1763701847215,-3895.74888,0.00018,2]
[394555596,1763701847228,-4515.84100023,0.00018,2]
[394555597,1763701847241,-882.504,0.00018,2]
[394555598,1763701847253,-3287.60933475,0.00018,2]
[394555599,1763701847264,-839.79585877,0.00018,2]
[394555600,1763701847276,-456.93,0.00018,2]
[394555601,1763701847291,-1033.055,0.00018,2]
[394555602,1763701847304,-650.25000009,0.00018,2]
[394555603,1763701847388,-1342.12278365,0.00018,2]
[394555604,1763701847410,-2667.41,0.00018,2]
[394555607,1763701960807,451.04,0.00022,30]
[394555608,1763701970433,1334.788,0.00022,30]
[394555678,1763702731666,1027.15335262,0.0002,120]
[394555680,1763702750440,-200.0,0.00017999,16]
[394555682,1763702761492,-48.86600645,0.00017999,16]
[394555694,1763702836746,1000.0,0.00013699,2]
[394555703,1763702909048,909.2995209,0.000199,120]
[394555705,1763702944645,177.22059077,0.00016185,2]
[394555706,1763702947323,-502.45433935,0.0002,20]
[394555724,1763703004445,150.0,0.00018899,30]
[394555726,1763703010821,387.0,0.00021604,120]
[394555727,1763703011446,1634.2040831,0.00016123,2]
[394555728,1763703011470,4186.2959169,0.00016123,2]
[394555749,1763703032090,-250.0,0.00016199,2]
[394555750,1763703032100,-1051.7999999,0.000162,5]
[394555751,1763703032110,-250.0,0.00016233,2]
[394555752,1763703032120,-999.0,0.00016242,3]
[394555753,1763703032129,-209.36418828,0.00016285,2]
[394555754,1763703032139,-512.83968365,0.00016285,2]
[394555755,1763703032148,-300.0,0.00016603,2]
[394555756,1763703032157,-1200.0,0.00016603,2]
[394555757,1763703032167,-250.0,0.00016604,2]
[394555758,1763703032177,-999.99,0.00016604,2]
[394555759,1763703032186,-150.99,0.00016604,2]
[394555760,1763703032197,-9083.06,0.00016604,2]
[394555761,1763703032208,-875.78104379,0.00016604,2]
[394555762,1763703032240,-300.0,0.00016604,2]
[394555763,1763703032253,-688.72,0.00016604,2]
[394555764,1763703032274,-903.60764366,0.00016604,2]
[394555784,1763703038539,-471.87366345,0.00016604,2]
[394555786,1763703038559,-3389.9801557,0.00016604,2]
[394555894,1763703040146,-3370.0274934,0.00016604,2]
[394555897,1763703040162,-2111.30822505,0.00016604,2]
[394555911,1763703040306,-192.5041542,0.00016604,2]
[394555924,1763703044026,-7696.17762075,0.00016604,2]
[394555925,1763703044039,-499.99,0.00016604,2]
[394555926,1763703044048,-7415.31684197,0.00016604,2]
[394555927,1763703044934,-2584.67315803,0.00016604,2]
[394555928,1763703044944,-1000.0,0.00016674,2]
[394555929,1763703044954,-1000.0,0.00016674,2]
[394555930,1763703044964,-826.396,0.00016674,2]
[394555931,1763703044973,-300.85,0.0001676,2]
[394555932,1763703044983,-1000.0,0.00016786,2]
[394555933,1763703044992,-1000.0,0.00016786,2]
[394555934,1763703045001,-438.50157365,0.00016786,2]
[394555936,1763703046126,-200.0,0.00016283,2]
[394555937,1763703046137,-561.49842635,0.00016786,2]
[394555938,1763703046148,-1000.0,0.00016786,2]
[394555939,1763703046157,-1000.0,0.00016786,2]
[394555940,1763703046166,-1000.0,0.00016786,2]
[394555941,1763703046176,-1000.0,0.00016786,2]
[394555942,1763703046186,-766.044,0.00016786,2]
[394555943,1763703046195,-168.0,0.00016899,2]
[394555944,1763703046210,-2930.92875079,0.00016966,2]
[394555945,1763703046354,-2331.23998477,0.00016966,2]
[394555946,1763703046365,-500.0,0.00016973,2]
[394555947,1763703046374,-556.70208465,0.00016973,2]
[394555948,1763703046384,-168.0,0.00016976,2]
[394555949,1763703046393,-44.42125447,0.00016995,2]
[394555950,1763703046404,-266.57874553,0.00016995,2]
[394555951,1763703046415,-166.67,0.00016996,2]
[394555952,1763703046425,-6919.22596975,0.00017,2]
[394555962,1763703113045,264.27,8.304e-05,2]
[394555991,1763703314299,193.0,0.00021661,120]
[394555997,1763703328076,-667.93207624,0.00022396,120]
[394555998,1763703328110,-651.0,0.0002255,120]
[394555999,1763703328149,-326.0,0.0002255,120]
[394556000,1763703328188,-163.0,0.0002255,120]
[394556001,1763703328221,-192.06792376,0.00022684,120]
[394556038,1763703414201,-194.93207624,0.00022684,120]
[394556039,1763703414238,-193.0,0.00022744,120]
[394556042,1763703450379,937.58,0.00016133,2]
[394556044,1763703640714,-250.0,0.00017999,15]
[394556045,1763703653776,166.66,0.00015311,2]
[394556046,1763703653974,11.6282188,0.00015633,2]
[394556047,1763703653998,155.0317812,0.00015633,2]
[394556048,1763703654188,166.66,0.00015955,2]
[394556166,1763704052741,150.0,0.00016112,2]
[394556174,1763704209033,5094.7423545,0.000161,2]
[394556175,1763704209067,160542.2576455,0.000161,2]
[394556185,1763704232310,-1200.0,0.00016199,2]
[394556186,1763704232320,-300.0,0.00016199,2]
[394556187,1763704232331,-250.0,0.000162,2]
[394556188,1763704232341,-166.66,0.00016277,2]
[394556189,1763704232350,-6576.71204896,0.00016438,2]
[394556190,1763704232361,-243.97795104,0.00016438,2]
[394556191,1763704232371,-385.0,0.00016499,2]
[394556192,1763704232380,-300.0,0.00016499,2]
[394556193,1763704232390,-214.2,0.00016499,2]
[394556194,1763704232559,-733.14,0.00016548,2]
[394556197,1763704232611,-150.0,0.00016559,2]
[394556199,1763704232620,-999.99,0.00016559,2]
[394556200,1763704232629,-192.5,0.00016559,2]
[394556201,1763704232638,-1285.32,0.00016559,2]
[394556202,1763704232647,-6015.19,0.00016559,2]
[394556203,1763704232656,-9999.99,0.00016559,2]
[394556204,1763704232665,-150.99,0.00016559,2]
[394556205,1763704232674,-166.66,0.000166,2]
[394556207,1763704232683,-787.766,0.00016608,2]
[394556210,1763704232692,-9389.7951685,0.00016708,2]
[394556211,1763704232701,-214.2,0.00016773,2]
[394556212,1763704232709,-163.93587252,0.00016799,2]
[394556213,1763704232718,-150.0,0.000168,2]
[394556214,1763704232727,-150.0,0.000168,2]
[394556215,1763704232736,-161.57027822,0.000168,2]
[394556216,1763704232745,-4735.95186204,0.000168,2]
[394556217,1763704232753,-202.0,0.00016856,2]
[394556218,1763704232762,-500.0,0.00016873,2]
[394556219,1763704232771,-565.78509537,0.00016873,2]
[394556220,1763704232780,-151.0,0.00016883,2]
[394556221,1763704232790,-501.0,0.00016889,2]
[394556223,1763704232799,-215.7820805,0.00016898,2]
[394556224,1763704232808,-500.0,0.00016898,2]
[394556225,1763704232817,-350.07453342,0.00016898,2]
[394556226,1763704232828,-500.0,0.00016898,2]
[394556227,1763704232837,-253.40064321,0.00016898,2]
[394556228,1763704232847,-500.0,0.00016898,2]
[394556229,1763704232858,-760000.0,0.00016899,2]
[394556230,1763704232867,-152.21780147,0.00016899,2]
[394556231,1763704232876,-155.60118005,0.000169,2]
[394556232,1763704232886,-277.88063254,0.00016903,2]
[394556233,1763704232895,-2885.6115963,0.00016911,2]
[394556234,1763704232905,-8576.2570372,0.00016911,2]
[394556235,1763704232915,-166.66,0.00016922,2]
[394556236,1763704232925,-4735.95186195,0.00016922,2]
[394556237,1763704232934,-500.0,0.00016973,2]
[394556238,1763704232944,-500.0,0.00016973,2]
[394556239,1763704232953,-500.0,0.00016973,2]
[394556240,1763704232962,-206.32968314,0.00016973,2]
[394556241,1763704232972,-500.0,0.00016973,2]
[394556242,1763704232982,-500.0,0.00016973,2]
[394556243,1763704232991,-500.0,0.00016973,2]
[394556244,1763704233001,-500.0,0.00016973,2]
[394556245,1763704233011,-252.80261697,0.00016973,2]
[394556246,1763704233020,-603.76,0.00016986,2]
[394556247,1763704233030,-190.50462346,0.0001699,2]
[394556248,1763704233039,-300.0,0.00016999,2]
[394556249,1763704233049,-501.79360174,0.00016999,2]
[394556250,1763704233059,-500.0,0.00016999,2]
[394556251,1763704233068,-500.0,0.00016999,3]
[394556252,1763704233079,-500.0,0.00016999,4]
[394556253,1763704233089,-500.0,0.00016999,5]
[394556254,1763704233098,-500.0,0.00016999,6]
[394556255,1763704233107,-500.0,0.00016999,7]
[394556256,1763704233117,-500.0,0.00016999,8]
[394556257,1763704233126,-500.0,0.00016999,9]
[394556258,1763704233137,-500.0,0.00016999,10]
[394556259,1763704233146,-500.0,0.00016999,11]
[394556260,1763704233156,-500.0,0.00016999,12]
[394556261,1763704233165,-500.0,0.00016999,13]
[394556262,1763704233175,-500.0,0.00016999,14]
[394556263,1763704233184,-500.0,0.00016999,2]
[394556264,1763704233196,-500.0,0.00016999,2]
[394556265,1763704233206,-500.0,0.00016999,2]
[394556266,1763704233216,-500.0,0.00016999,2]
[394556267,1763704233226,-500.0,0.00016999,2]
[394556268,1763704233235,-500.0,0.00016999,2]
[394556269,1763704233245,-500.0,0.00016999,2]
[394556270,1763704233254,-500.0,0.00016999,2]
[394556271,1763704233264,-500.0,0.00016999,2]
[394556272,1763704233275,-500.0,0.00016999,2]
[394556273,1763704233285,-500.0,0.00016999,2]
[394556274,1763704233296,-500.0,0.00016999,2]
[394556275,1763704233305,-500.0,0.00016999,2]
[394556276,1763704233315,-500.0,0.00016999,2]
[394556277,1763704233325,-13575.85894801,0.00017,2]
[394556278,1763704233463,-1073.83709397,0.00017,2]
[394556279,1763704233490,-952.11509569,0.00017,2]
[394556332,1763704241117,-500.0,0.00016898,2]
[394556333,1763704241132,-500.0,0.00016898,2]
[394556334,1763704241148,-500.0,0.00016898,2]
[394556335,1763704241169,-500.0,0.00016898,2]
[394556336,1763704241183,-500.0,0.00016898,2]
[394556337,1763704241199,-500.0,0.00016898,2]
[394556338,1763704241215,-500.0,0.00016898,2]
[394556339,1763704241231,-219.80604353,0.00016898,2]
[394556340,1763704241244,-528.1685582,0.00016898,2]
[394556341,1763704241255,-366.78196009,0.00016898,2]
[394556342,1763704241265,-500.0,0.00016898,2]
[394556343,1763704241276,-500.0,0.00016898,2]
[394556344,1763704241285,-500.0,0.00016898,2]
[394556345,1763704241295,-500.0,0.00016898,2]
[394556346,1763704241305,-500.0,0.00016898,2]
[394556347,1763704241315,-500.0,0.00016898,2]
[394556348,1763704241325,-500.0,0.00016898,2]
[394556349,1763704241335,-500.0,0.00016898,2]
[394556350,1763704241662,-500.0,0.00016898,2]
[394556351,1763704241695,-500.0,0.00016898,2]
[394556352,1763704241723,-500.0,0.00016898,2]
[394556353,1763704241733,-500.0,0.00016898,2]
[394556354,1763704241743,-500.0,0.00016898,2]
[394556355,1763704241753,-500.0,0.00016898,2]
[394556356,1763704241763,-500.0,0.00016898,2]
[394556357,1763704241773,-500.0,0.00016898,2]
[394556358,1763704241783,-500.0,0.00016898,2]
[394556359,1763704241793,-525.03892956,0.00016898,2]
[394556360,1763704241803,-500.0,0.00016898,2]
[394556361,1763704241812,-500.0,0.00016898,2]
[394556362,1763704241822,-500.0,0.00016898,2]
[394556363,1763704241832,-27216.90243836,0.00017,2]
[394556380,1763704246440,-548.36194,0.00017,2]
[394556381,1763704246455,-692.99999799,0.00017,2]
[394556382,1763704246472,-409.55999997,0.00017,2]
[394556383,1763704246485,-14993.87529881,0.00017,2]
[394556384,1763704246870,-359.62130208,0.00017,2]
[394556385,1763704246890,-428.14468468,0.00017,2]
[394556398,1763704312651,220103.73870031,0.000161,2]
[394556399,1763704321808,-300.0,0.00016099,2]
[394556400,1763704322995,-406.19155739,0.000161,2]
[394556401,1763704324289,-6469.89986169,0.000161,2]
[394556402,1763704324450,-10000.01,0.000161,2]
[394556403,1763704324528,-10000.01,0.000161,2]
[394556404,1763704324691,-10000.01,0.000161,2]
[394556405,1763704324801,-10000.01,0.000161,2]
[394556406,1763704325750,-159.30343058,0.000161,2]
[394556407,1763704327404,-449.6200722,0.000161,2]
[394556408,1763704327427,-10000.01,0.000161,2]
[394556409,1763704327444,-10000.01,0.000161,2]
[394556410,1763704327459,-10000.01,0.000161,2]
[394556411,1763704327488,-10000.01,0.000161,2]
[394556412,1763704333327,-4172.43808318,0.000161,2]
[394556413,1763704335352,-8382.86776369,0.000161,2]
[394556414,1763704339087,-10000.01,0.000161,2]
[394556415,1763704339236,-10000.01,0.000161,2]
[394556416,1763704342530,-488.67031251,0.00016019,2]
[394556417,1763704344683,-496.46705718,0.00016019,2]
[394556418,1763704349628,-250.0,0.00016019,2]
[394556419,1763704351364,-300.0,0.00016019,2]
[394556420,1763704352738,-216.10435326,0.00016019,2]
[394556421,1763704354753,-2079.45649405,0.00016019,2]
[394556422,1763704354784,-500.0,0.00016099,2]
[394556423,1763704354814,-245.0521734,0.00016099,2]
[394556424,1763704354844,-151.04745635,0.00016099,2]
[394556425,1763704354873,-500.0,0.00016099,2]
[394556426,1763704354902,-227.38045025,0.00016099,2]
[394556427,1763704354934,-500.0,0.00016099,2]
[394556428,1763704354965,-500.0,0.00016099,2]
[394556429,1763704355271,-602.50389295,0.00016099,2]
[394556430,1763704355457,-602.50389295,0.000161,2]
[394556431,1763704355481,-8795.0022141,0.000161,2]
[394556432,1763704355520,-10000.01,0.000161,2]
[394556433,1763704355567,-10000.01,0.000161,2]
[394556434,1763704355616,-10000.01,0.000161,2]
[394556435,1763704357555,-300.0,0.000161,2]
[394556436,1763704359429,-582.72433826,0.000161,2]
[394556437,1763704360626,-2889.56400954,0.000161,2]
[394556438,1763704360641,-10000.01,0.000161,2]
[394556439,1763704360754,-10000.01,0.000161,2]
[394556440,1763704366374,-331.22591429,0.000161,2]
[394556441,1763704366740,-10000.01,0.000161,2]
[394556442,1763704366891,-10000.01,0.000161,2]
[394556443,1763704367494,-10000.01,0.000161,2]
[394556444,1763704367523,-10000.01,0.000161,2]
[394556445,1763704367658,-10000.01,0.000161,2]
[394556446,1763704367840,-10000.01,0.000161,2]
[394556447,1763704370102,-400.28482685,0.000161,2]
[394556448,1763704372931,-10000.01,0.000161,2]
[394556449,1763704373094,-10000.01,0.000161,2]
[394556450,1763704373206,-10000.01,0.000161,2]
[394556451,1763704373756,-500.0,0.000161,2]
[394556452,1763704376423,-429.97305084,0.000161,2]
[394556453,1763704379277,-10000.01,0.000161,2]
[394556454,1763704379406,-10000.01,0.000161,2]
[394556455,1763704379569,-10000.01,0.000161,2]
[394556456,1763704381216,-611.98981445,0.000161,2]
[394556457,1763704382562,-10000.01,0.000161,2]
[394556458,1763704382783,-10000.01,0.000161,2]
[394556459,1763704382926,-10000.01,0.000161,2]
[394556460,1763704383793,-390.48947352,0.000161,2]
[394556461,1763704385328,-267.65894842,0.000161,2]
[394556462,1763704386897,-1760.65605216,0.000161,2]
[394556463,1763704387728,4430.291777,7.945e-05,2]
[394556464,1763704388499,-10000.01,0.000161,2]
[394556465,1763704388871,-10000.01,0.000161,2]
[394556466,1763704388924,-400.0,0.000161,2]
[394556467,1763704389097,-10000.01,0.000161,2]
[394556468,1763704389141,-10000.01,0.000161,2]
[394556469,1763704390399,-300.0,0.000161,2]
[394556470,1763704392170,-10000.01,0.000161,2]
[394556471,1763704393061,-218.44634236,0.000161,2]
[394556472,1763704394726,-10000.01,0.000161,2]
[394556473,1763704394924,-10000.01,0.000161,2]
[394556474,1763704395038,-10000.01,0.000161,2]
[394556475,1763704395147,-10000.01,0.000161,2]
[394556476,1763704396988,-300.0,0.000161,2]
[394556477,1763704398041,-10000.01,0.000161,2]
[394556478,1763704401500,-10000.01,0.000161,2]
[394556479,1763704402212,-2751.0,0.000161,2]
[394556480,1763704402584,-10000.01,0.000161,2]
[394556481,1763704402688,-10000.01,0.000161,2]
[394556482,1763704402709,-10000.01,0.000161,2]
[394556483,1763704402732,-10000.01,0.000161,2]
[394556484,1763704402751,-10000.01,0.000161,2]
[394556485,1763704402776,-10000.01,0.000161,2]
[394556486,1763704404621,150.0,0.00016004,120]
[394556487,1763704405085,-150.0,0.00016004,2]
[394556488,1763704405111,-37.89724431,0.000161,2]
[394556489,1763704406602,-177.49872372,0.000161,2]
[394556490,1763704407475,-10000.01,0.000161,2]
[394556491,1763704408036,-280.4614,0.000161,2]
[394556492,1763704410448,-10000.01,0.000161,2]
[394556493,1763704410646,-2471.93571481,0.000161,2]
[394556494,1763704410669,-5056.13857038,0.000161,2]
[394556495,1763704410760,-3696.4765,0.000161,2]
[394556496,1763704415740,152.52098494,0.00016,2]
[394556501,1763704428609,500.0,0.00016099,2]
[394556502,1763704448265,1954.53601506,7.945e-05,2]
[394556503,1763704448536,4547.14666194,7.945e-05,2]
[394556504,1763704449142,200.4318045,0.00016019,2]
[394556505,1763704457028,500.0,0.00016099,2]
[394556506,1763704457074,500.0,0.00016099,2]
[394556507,1763704457120,500.0,0.00016099,2]
[394556508,1763704457191,500.0,0.00016099,2]
[394556509,1763704457296,500.0,0.00016099,2]
[394556510,1763704457342,500.0,0.00016099,2]
[394556511,1763704457381,500.0,0.00016099,2]
[394556512,1763704457428,500.0,0.00016099,2]
[394556513,1763704457470,500.0,0.00016099,2]
[394556514,1763704457508,212.5814189,0.00016099,2]
[394556515,1763704457545,500.0,0.00016099,2]
[394556516,1763704457599,39.85011466,0.00016099,2]
[394556517,1763704457625,460.14988534,0.00016099,2]
[394556518,1763704457692,500.0,0.00016099,2]
[394556519,1763704466262,500.0,0.00016099,2]
[394556520,1763704467283,296.20257369,0.00016099,2]
[394556522,1763704484237,8243.65754097,0.000161,2]
[394556523,1763704484264,10000.01,0.000161,2]
[394556524,1763704484287,10000.01,0.000161,2]
[394556525,1763704485954,-7392.953,0.000161,2]
[394556526,1763704486120,-10000.01,0.000161,2]
[394556527,1763704486289,-349.71517315,0.000161,2]
[394556528,1763704487908,-200.0,0.000161,2]
[394556529,1763704491194,-10000.01,0.000161,2]
[394556530,1763704491314,-10000.01,0.000161,2]
[394556531,1763704491441,-10000.01,0.000161,2]
[394556532,1763704491550,-10000.01,0.000161,2]
[394556533,1763704491658,-10000.01,0.000161,2]
[394556534,1763704491776,-10000.01,0.000161,2]
[394556535,1763704491832,-635.28716866,0.000161,2]
[394556536,1763704491948,-10000.01,0.000161,2]
[394556537,1763704492057,-10000.01,0.000161,2]
[394556538,1763704493459,-3868.92659451,0.000161,2]
[394556539,1763704495543,-310.0,0.000161,2]
[394556540,1763704497323,-10000.01,0.000161,2]
[394556541,1763704497473,-10000.01,0.000161,2]
[394556542,1763704500007,-2544.39609173,0.000161,2]
[394556543,1763704501562,-200.00008818,0.00016004,2]
[394556544,1763704503040,-237.439822,0.00016004,2]
[394556545,1763704503644,-1162.56008982,0.00016004,2]
[394556546,1763704503686,-7674.88982036,0.00016019,2]
[394556547,1763704503849,-44.80878236,0.00016019,2]
[394556548,1763704503872,-9910.39243528,0.00016019,2]
[394556549,1763704503966,-300.0,0.00016099,2]
[394556550,1763704503994,-1200.0,0.00016099,2]
[394556551,1763704504023,-300.0,0.00016099,2]
[394556552,1763704504055,-300.0,0.00016099,2]
[394556553,1763704504167,-5800.01,0.000161,2]
[394556554,1763704504223,-10000.01,0.000161,2]
[394556555,1763704504251,-10000.01,0.000161,2]
[394556556,1763704506494,-10000.01,0.000161,2]
[394556557,1763704506666,-10000.01,0.000161,2]
[394556558,1763704506806,-10000.01,0.000161,2]
[394556559,1763704509561,-300.0,0.000161,2]
[394556560,1763704511160,-235.7783164,0.000161,2]
[394556561,1763704517362,-5723.42655808,0.000161,2]
[394556562,1763704520778,-1719.40575842,0.000161,2]
[394556563,1763704524838,-350.54137566,0.000161,2]
[394556564,1763704533686,-1200.0,0.000161,2]
[394556565,1763704536026,-300.0,0.000161,2]
[394556566,1763704540039,378.57429444,0.00016,2]
[394556567,1763704541056,-300.0,0.000161,2]
[394556568,1763704542639,-400.0,0.000161,2]
[394556569,1763704548269,1686.87467217,0.00016,2]
[394556570,1763704550189,-249.99999984,0.000161,2]
[394556571,1763704552761,-500.0,0.000161,2]
[394556572,1763704556903,-565.68048604,0.000161,2]
[394556573,1763704560841,-5930.53225722,0.000161,2]
[394556574,1763704566745,-300.0,0.00016099,2]
[394556575,1763704566772,-9699.99,0.000161,2]
[394556576,1763704568332,-300.0,0.000161,2]
[394556577,1763704572918,-354.62709817,0.000161,2]
[394556578,1763704575253,-467.32180183,0.000161,2]
[394556579,1763704579376,-227.42420966,0.000161,2]
[394556580,1763704581553,-183.58369823,0.000161,2]
[394556581,1763704582556,2751.0,0.00015954,2]
[394556582,1763704585320,-166.66,0.000161,2]
[394556583,1763704587575,-288.67819817,0.000161,2]
[394556584,1763704590205,-154.06725764,0.000161,2]
[394556585,1763704592370,-362.32180183,0.000161,2]
[394556586,1763704594931,-162.32180183,0.000161,2]
[394556587,1763704596704,-349.00179291,0.000161,2]
[394556588,1763704602239,-194.995186,0.00016099,2]
[394556589,1763704604228,-154.84886786,0.00016099,2]
[394556590,1763704650372,5183.56103339,0.00016,3]
[394556591,1763704650394,337.43896661,0.00016,3]
[394556592,1763704698534,684.8682,0.00016077,2]
[394556593,1763704743073,290.41976903,0.00016,2]
[394556594,1763704748397,515.27153248,0.00016,2]
[394556595,1763704752659,1000.0,0.00016018,2]
[394556596,1763704788897,-265.89510417,0.00016084,2]
[394556597,1763704790815,-241.44880855,0.00016084,2]
[394556598,1763704791443,-1610.23457206,0.00016084,2]
[394556602,1763704919947,284.96425948,0.00016,2]
[394556603,1763704937747,1535.05871179,0.00015,2]
[394556604,1763704991502,4959.51788461,0.00016,5]
[394556605,1763704991531,561.48211539,0.00016,5]
[394556606,1763705000753,200.0,0.0001583,2]
[394556607,1763705062121,255.96,0.00015861,2]
[394556608,1763705070357,193.61317936,0.00015999,2]
[394556609,1763705074842,150.0,8.1e-05,2]
[394556610,1763705076331,193.61317935,0.00016,2]
[394556611,1763705082422,193.61317935,0.00016,2]
[394556612,1763705094234,164.06876657,0.00015999,2]
[394556613,1763705098196,1852.42,0.00015861,2]
[394556615,1763705116602,150.0,0.00015288,2]
[394556616,1763705133621,228.19480641,0.00022,30]
[394556617,1763705196649,7639.90805408,0.00015908,2]
[394556618,1763705196673,10000.01,0.00015908,2]
[394556619,1763705196702,7360.11194592,0.00015908,2]
[394556620,1763705239142,999.0,0.00015767,3]
[394556621,1763705243239,1640.89805408,0.00015908,2]
[394556622,1763705243262,666.98233307,0.00015908,2]
[394556623,1763705304002,250.0,0.00015908,2]
[394556624,1763705348378,1520.6678247,0.0001,30]
[394556625,1763705405530,166.0,0.00021422,120]
[394556634,1763705431601,-464.0,0.00016098,2]
[394556635,1763705431611,-300.0,0.00016098,2]
[394556636,1763705431621,-300.0,0.00016098,2]
[394556637,1763705431631,-1200.0,0.00016098,2]
[394556638,1763705431641,-153.56864648,0.00016098,2]
[394556639,1763705431651,-150.15594614,0.00016099,2]
[394556640,1763705431661,-550.0,0.00016099,2]
[394556641,1763705431672,-300.0,0.00016099,2]
[394556642,1763705431683,-28532.27301905,0.000161,2]
[394556643,1763705431693,-200.0,0.000161,2]
[394556644,1763705431703,-500.0,0.000161,2]
[394556645,1763705431712,-500.0,0.000161,2]
[394556646,1763705431722,-500.0,0.000161,2]
[394556647,1763705431731,-500.0,0.000161,2]
[394556648,1763705431741,-500.0,0.000161,2]
[394556649,1763705431750,-500.0,0.000161,2]
[394556650,1763705431760,-500.0,0.000161,2]
[394556651,1763705431770,-500.0,0.000161,2]
[394556652,1763705431782,-500.0,0.000161,2]
[394556653,1763705431792,-500.0,0.000161,2]
[394556654,1763705431801,-500.0,0.000161,2]
[394556655,1763705431811,-500.0,0.000161,2]
[394556656,1763705431822,-500.0,0.000161,2]